[Event "Early-Titled-Tuesday-Blitz-June-18-2024"]
[Site "Chess.com"]
[Date "2024.06.18"]
[Round "9"]
[White "annasargsyan_m"]
[Black "suyu28"]
[Result "1-0"]
[WhiteElo "2629"]
[BlackElo "2756"]
[TimeControl "180+1"]
[EndTime "9:45:52 PDT"]
[Termination "annasargsyan_m won on time"]

1. d4 {[%clk 0:03:00.9]} 1... Nf6 {[%clk 0:02:46.3]} 2. Nf3 {[%clk 0:03:00.8]}
2... b6 {[%clk 0:02:40.7]} 3. e3 {[%clk 0:03:00.9]} 3... e6 {[%clk 0:02:34]} 4.
Bd3 {[%clk 0:03:01]} 4... c5 {[%clk 0:02:34.3]} 5. O-O {[%clk 0:03:00]} 5... Ba6
{[%clk 0:02:33.5]} 6. c4 {[%clk 0:02:59.8]} 6... cxd4 {[%clk 0:02:33]} 7. exd4
{[%clk 0:02:59.4]} 7... Be7 {[%clk 0:02:33.6]} 8. Nc3 {[%clk 0:02:57]} 8... O-O
{[%clk 0:02:34.1]} 9. d5 {[%clk 0:02:56.3]} 9... Bb4 {[%clk 0:02:20.1]} 10. Bg5
{[%clk 0:02:54.2]} 10... h6 {[%clk 0:02:19.6]} 11. Bxf6 {[%clk 0:02:50.6]} 11...
Qxf6 {[%clk 0:02:19.3]} 12. Ne4 {[%clk 0:02:51.1]} 12... Qf4 {[%clk 0:02:10.3]}
13. a3 {[%clk 0:02:37.5]} 13... Be7 {[%clk 0:02:09.7]} 14. g3 {[%clk 0:02:15.3]}
14... Qg4 {[%clk 0:02:01.5]} 15. Kg2 {[%clk 0:01:51]} 15... Qh5 {[%clk
0:01:54.3]} 16. h3 {[%clk 0:01:37.7]} 16... f5 {[%clk 0:01:14.5]} 17. Nc3 {[%clk
0:01:38.2]} 17... Bf6 {[%clk 0:01:11.7]} 18. Re1 {[%clk 0:01:30.4]} 18... Bb7
{[%clk 0:01:09.5]} 19. Be2 {[%clk 0:01:23.9]} 19... Qf7 {[%clk 0:01:04.8]} 20.
Nb5 {[%clk 0:01:20.6]} 20... Qe7 {[%clk 0:00:55.4]} 21. Nfd4 {[%clk 0:01:15.6]}
21... Na6 {[%clk 0:00:45.6]} 22. Bf3 {[%clk 0:01:13.8]} 22... Nc5 {[%clk
0:00:26.4]} 23. Nxf5 {[%clk 0:01:11.7]} 23... Qd8 {[%clk 0:00:19.6]} 24. Nfd6
{[%clk 0:01:08.7]} 24... Ba6 {[%clk 0:00:16.9]} 25. Rb1 {[%clk 0:01:05]} 25...
Bxb5 {[%clk 0:00:07.1]} 26. Nxb5 {[%clk 0:01:02.6]} 26... e5 {[%clk 0:00:07.2]}
27. b4 {[%clk 0:01:02.1]} 27... Nb7 {[%clk 0:00:06.5]} 28. d6 {[%clk 0:01:02.3]}
28... Rb8 {[%clk 0:00:05.9]} 29. Bxb7 {[%clk 0:01:00.4]} 29... e4 {[%clk
0:00:04.9]} 30. Bxe4 {[%clk 0:00:59.6]} 30... Kh8 {[%clk 0:00:04.9]} 31. Bc2
{[%clk 0:00:55.6]} 31... a6 {[%clk 0:00:04.2]} 32. Qd3 {[%clk 0:00:55.4]} 32...
Kg8 {[%clk 0:00:03.1]} 33. Nc7 {[%clk 0:00:52.8]} 1-0

[Event "Early-Titled-Tuesday-Blitz-June-18-2024"]
[Site "Chess.com"]
[Date "2024.06.18"]
[Round "9"]
[White "HansOnTwitch"]
[Black "Boundless_Strike"]
[Result "1-0"]
[WhiteElo "3131"]
[BlackElo "2665"]
[TimeControl "180+1"]
[EndTime "9:45:53 PDT"]
[Termination "HansOnTwitch won on time"]

1. e4 {[%clk 0:03:00.9]} 1... d6 {[%clk 0:02:30.9]} 2. d4 {[%clk 0:02:58.5]}
2... Nf6 {[%clk 0:02:31.4]} 3. Nc3 {[%clk 0:02:58.3]} 3... c6 {[%clk 0:02:31.9]}
4. f4 {[%clk 0:02:57.8]} 4... Qa5 {[%clk 0:02:31.8]} 5. Bd2 {[%clk 0:02:48.3]}
5... e5 {[%clk 0:02:31.2]} 6. Nf3 {[%clk 0:02:45.4]} 6... exd4 {[%clk 0:02:30]}
7. Nxd4 {[%clk 0:02:42.8]} 7... Qb6 {[%clk 0:02:30.2]} 8. Nb3 {[%clk 0:02:35.6]}
8... a5 {[%clk 0:02:29.5]} 9. Bd3 {[%clk 0:02:07.1]} 9... Bg4 {[%clk 0:02:13.3]}
10. Qc1 {[%clk 0:02:05.9]} 10... a4 {[%clk 0:01:35]} 11. Be3 {[%clk 0:02:05.1]}
11... Qc7 {[%clk 0:01:16]} 12. Nd2 {[%clk 0:02:05.2]} 12... Bc8 {[%clk
0:00:40.5]} 13. h3 {[%clk 0:01:57.1]} 13... Be7 {[%clk 0:00:37.5]} 14. O-O
{[%clk 0:01:56.4]} 14... O-O {[%clk 0:00:37.8]} 15. Nf3 {[%clk 0:01:55.9]} 15...
Nbd7 {[%clk 0:00:31.2]} 16. Qe1 {[%clk 0:01:55.4]} 16... Re8 {[%clk 0:00:30.3]}
17. Qg3 {[%clk 0:01:53.6]} 17... Nh5 {[%clk 0:00:30.6]} 18. Qh2 {[%clk
0:01:53.7]} 18... a3 {[%clk 0:00:21.9]} 19. g4 {[%clk 0:01:34.1]} 19... axb2
{[%clk 0:00:22]} 20. Rab1 {[%clk 0:01:33.6]} 20... Qa5 {[%clk 0:00:18.1]} 21.
gxh5 {[%clk 0:01:25.8]} 21... Qxc3 {[%clk 0:00:14.8]} 22. Bd4 {[%clk 0:01:23.9]}
22... Qa5 {[%clk 0:00:14.4]} 23. Bxb2 {[%clk 0:01:03.6]} 23... Qxh5 {[%clk
0:00:09.1]} 24. Qg3 {[%clk 0:00:59.6]} 24... Bf6 {[%clk 0:00:09.4]} 25. e5
{[%clk 0:00:55.5]} 25... dxe5 {[%clk 0:00:09.8]} 26. fxe5 {[%clk 0:00:56.4]}
26... Nxe5 {[%clk 0:00:10.4]} 27. Nxe5 {[%clk 0:00:56.5]} 27... Bxe5 {[%clk
0:00:10.9]} 28. Rbe1 {[%clk 0:00:57.2]} 28... Ra5 {[%clk 0:00:05]} 29. Bc4
{[%clk 0:00:48.6]} 29... Be6 {[%clk 0:00:03.1]} 30. Bxe5 {[%clk 0:00:47.9]}
30... Rxe5 {[%clk 0:00:01.3]} 31. Rxe5 {[%clk 0:00:47.6]} 1-0

[Event "Early-Titled-Tuesday-Blitz-June-18-2024"]
[Site "Chess.com"]
[Date "2024.06.18"]
[Round "9"]
[White "amylazy"]
[Black "Moon_stone123"]
[Result "0-1"]
[WhiteElo "2467"]
[BlackElo "2609"]
[TimeControl "180+1"]
[EndTime "9:45:54 PDT"]
[Termination "Moon_stone123 won by checkmate"]

1. d4 {[%clk 0:02:53.2]} 1... d5 {[%clk 0:02:52.4]} 2. c4 {[%clk 0:02:52.7]}
2... e6 {[%clk 0:02:52.1]} 3. Nf3 {[%clk 0:02:52.6]} 3... Nd7 {[%clk 0:02:47.5]}
4. cxd5 {[%clk 0:02:47.6]} 4... exd5 {[%clk 0:02:46.9]} 5. Nc3 {[%clk
0:02:48.5]} 5... Ngf6 {[%clk 0:02:45.8]} 6. g3 {[%clk 0:02:47.4]} 6... c6 {[%clk
0:02:44.7]} 7. Bg2 {[%clk 0:02:48.3]} 7... Bd6 {[%clk 0:02:43.3]} 8. O-O {[%clk
0:02:49.2]} 8... O-O {[%clk 0:02:42.1]} 9. a4 {[%clk 0:02:42]} 9... Re8 {[%clk
0:02:40]} 10. a5 {[%clk 0:02:42]} 10... a6 {[%clk 0:02:37.4]} 11. Qb3 {[%clk
0:02:42.1]} 11... Bc7 {[%clk 0:02:36.1]} 12. Bd2 {[%clk 0:02:32.5]} 12... h6
{[%clk 0:02:01.2]} 13. Qa4 {[%clk 0:02:11.4]} 13... Ne4 {[%clk 0:02:00]} 14. Be3
{[%clk 0:02:09.6]} 14... Ndf6 {[%clk 0:01:53.8]} 15. Rfd1 {[%clk 0:02:02.9]}
15... Nxc3 {[%clk 0:01:51.4]} 16. bxc3 {[%clk 0:02:03.8]} 16... Ne4 {[%clk
0:01:51.7]} 17. Rdc1 {[%clk 0:01:57.5]} 17... Nd6 {[%clk 0:01:43]} 18. Ne5
{[%clk 0:01:56.5]} 18... f6 {[%clk 0:01:41.6]} 19. Nd3 {[%clk 0:01:49.6]} 19...
Nc4 {[%clk 0:01:41.6]} 20. Bf4 {[%clk 0:01:49.9]} 20... Rxe2 {[%clk 0:01:33.6]}
21. Re1 {[%clk 0:01:49.8]} 21... Rxe1+ {[%clk 0:01:31.1]} 22. Rxe1 {[%clk
0:01:50.1]} 22... Bxa5 {[%clk 0:01:29.2]} 23. Nc5 {[%clk 0:01:42]} 23... Bxc3
{[%clk 0:01:27.6]} 24. Rc1 {[%clk 0:01:38.1]} 24... Bxd4 {[%clk 0:01:20.5]} 25.
Rxc4 {[%clk 0:01:37.8]} 25... dxc4 {[%clk 0:01:21]} 26. Qxc4+ {[%clk 0:01:38]}
26... Kh8 {[%clk 0:01:20.5]} 27. Ne4 {[%clk 0:01:28.6]} 27... Bf5 {[%clk
0:01:18.9]} 28. Nd6 {[%clk 0:01:28.3]} 28... Bxf2+ {[%clk 0:01:01.3]} 29. Kxf2
{[%clk 0:01:26.2]} 29... Qb6+ {[%clk 0:01:01.8]} 30. Be3 {[%clk 0:01:22.2]}
30... Qb2+ {[%clk 0:01:02]} 31. Kg1 {[%clk 0:01:22.3]} 31... Qb1+ {[%clk
0:00:59.9]} 32. Kf2 {[%clk 0:00:52.7]} 32... Bd3 {[%clk 0:00:58.4]} 33. Qc3
{[%clk 0:00:37.4]} 33... Qd1 {[%clk 0:00:58.5]} 34. Bf3 {[%clk 0:00:34.1]} 34...
Qf1# {[%clk 0:00:21.1]} 0-1

[Event "Early-Titled-Tuesday-Blitz-June-18-2024"]
[Site "Chess.com"]
[Date "2024.06.18"]
[Round "9"]
[White "Chessmatenokk17"]
[Black "evgchess5"]
[Result "0-1"]
[WhiteElo "2796"]
[BlackElo "2933"]
[TimeControl "180+1"]
[EndTime "9:45:58 PDT"]
[Termination "evgchess5 won by checkmate"]

1. e4 {[%clk 0:03:00.9]} 1... c5 {[%clk 0:02:59.1]} 2. Nf3 {[%clk 0:03:00.9]}
2... e6 {[%clk 0:02:59.6]} 3. c3 {[%clk 0:03:01]} 3... d5 {[%clk 0:02:58.3]} 4.
e5 {[%clk 0:03:01.4]} 4... Nc6 {[%clk 0:02:57.6]} 5. d4 {[%clk 0:03:01.6]} 5...
Bd7 {[%clk 0:02:58.1]} 6. Na3 {[%clk 0:03:01.6]} 6... f6 {[%clk 0:02:38.6]} 7.
exf6 {[%clk 0:02:58.8]} 7... Nxf6 {[%clk 0:02:37.8]} 8. Nc2 {[%clk 0:02:56.6]}
8... Bd6 {[%clk 0:02:36.9]} 9. Bd3 {[%clk 0:02:52.3]} 9... O-O {[%clk
0:02:30.9]} 10. O-O {[%clk 0:02:52.2]} 10... Qc7 {[%clk 0:02:22.3]} 11. Bg5
{[%clk 0:02:46.2]} 11... e5 {[%clk 0:02:04.8]} 12. dxe5 {[%clk 0:02:27.3]} 12...
Nxe5 {[%clk 0:02:04.9]} 13. Nxe5 {[%clk 0:02:25.5]} 13... Bxe5 {[%clk
0:02:05.1]} 14. h3 {[%clk 0:02:19.4]} 14... Bc6 {[%clk 0:01:51.5]} 15. Ne3
{[%clk 0:01:56.6]} 15... Bf4 {[%clk 0:01:38.4]} 16. Bxf4 {[%clk 0:01:13.6]}
16... Qxf4 {[%clk 0:01:38.3]} 17. Ng4 {[%clk 0:01:02.1]} 17... Nd7 {[%clk
0:01:24.2]} 18. Qc2 {[%clk 0:00:57.2]} 18... h5 {[%clk 0:01:22.5]} 19. Ne3
{[%clk 0:00:41.1]} 19... Ne5 {[%clk 0:01:22.6]} 20. Bf5 {[%clk 0:00:36.5]} 20...
d4 {[%clk 0:01:12.2]} 21. cxd4 {[%clk 0:00:34.8]} 21... cxd4 {[%clk 0:01:12.5]}
22. Be6+ {[%clk 0:00:34.9]} 22... Kh8 {[%clk 0:01:12.1]} 23. Nd5 {[%clk
0:00:30.8]} 23... Qh6 {[%clk 0:01:01.3]} 24. Nc7 {[%clk 0:00:21]} 24... Rad8
{[%clk 0:00:59.7]} 25. f4 {[%clk 0:00:14.9]} 25... Rxf4 {[%clk 0:00:51.1]} 26.
Qe2 {[%clk 0:00:14.8]} 26... Rxf1+ {[%clk 0:00:44.3]} 27. Rxf1 {[%clk
0:00:14.3]} 27... Qe3+ {[%clk 0:00:44.3]} 28. Qxe3 {[%clk 0:00:12.2]} 28... dxe3
{[%clk 0:00:44.4]} 29. Bb3 {[%clk 0:00:10.2]} 29... Rd2 {[%clk 0:00:40.3]} 30.
Re1 {[%clk 0:00:04.9]} 30... Rxg2+ {[%clk 0:00:38.7]} 31. Kf1 {[%clk 0:00:05.5]}
31... Rf2+ {[%clk 0:00:38.8]} 32. Kg1 {[%clk 0:00:06]} 32... Nf3+ {[%clk
0:00:38.8]} 33. Kh1 {[%clk 0:00:06.7]} 33... Rh2# {[%clk 0:00:38.5]} 0-1

[Event "Early-Titled-Tuesday-Blitz-June-18-2024"]
[Site "Chess.com"]
[Date "2024.06.18"]
[Round "9"]
[White "Cmorales2001"]
[Black "Jeppesen08"]
[Result "1-0"]
[WhiteElo "2334"]
[BlackElo "2429"]
[TimeControl "180+1"]
[EndTime "9:46:02 PDT"]
[Termination "Cmorales2001 won by checkmate"]

1. e4 {[%clk 0:02:58.3]} 1... c5 {[%clk 0:02:59.2]} 2. Nf3 {[%clk 0:02:58.4]}
2... e6 {[%clk 0:02:58.6]} 3. d4 {[%clk 0:02:55]} 3... cxd4 {[%clk 0:02:59.5]}
4. Nxd4 {[%clk 0:02:54.6]} 4... Nc6 {[%clk 0:03:00.2]} 5. Nc3 {[%clk 0:02:52.3]}
5... Qc7 {[%clk 0:02:59.8]} 6. Be3 {[%clk 0:02:47.7]} 6... a6 {[%clk 0:02:59.8]}
7. Bd3 {[%clk 0:02:47.4]} 7... Nf6 {[%clk 0:02:59.2]} 8. f3 {[%clk 0:02:30.7]}
8... b5 {[%clk 0:02:58.1]} 9. Nxc6 {[%clk 0:02:29.9]} 9... Qxc6 {[%clk
0:02:57.2]} 10. a4 {[%clk 0:02:30.1]} 10... b4 {[%clk 0:02:56.6]} 11. Ne2 {[%clk
0:02:30]} 11... Bb7 {[%clk 0:02:56.1]} 12. O-O {[%clk 0:02:29.1]} 12... Bc5
{[%clk 0:02:41.1]} 13. Qd2 {[%clk 0:02:23.4]} 13... Qb6 {[%clk 0:02:38.1]} 14.
Bxc5 {[%clk 0:02:21.2]} 14... Qxc5+ {[%clk 0:02:39]} 15. Kh1 {[%clk 0:02:20.8]}
15... O-O {[%clk 0:02:32.3]} 16. a5 {[%clk 0:02:10.6]} 16... Bc6 {[%clk
0:02:25]} 17. Ng3 {[%clk 0:02:07.3]} 17... Rfc8 {[%clk 0:02:19.9]} 18. f4 {[%clk
0:02:02.9]} 18... Bb5 {[%clk 0:02:10.5]} 19. Bxb5 {[%clk 0:02:01.4]} 19... axb5
{[%clk 0:02:09.2]} 20. Rf2 {[%clk 0:01:36.1]} 20... h5 {[%clk 0:01:57.9]} 21.
Re2 {[%clk 0:01:29.8]} 21... h4 {[%clk 0:01:47.2]} 22. e5 {[%clk 0:01:09.6]}
22... hxg3 {[%clk 0:01:33.5]} 23. exf6 {[%clk 0:01:09]} 23... gxf6 {[%clk
0:01:18.1]} 24. Re3 {[%clk 0:00:54.5]} 24... Qxc2 {[%clk 0:00:44.2]} 25. Rxg3+
{[%clk 0:00:52.6]} 25... Kh7 {[%clk 0:00:42.7]} 26. Rh3+ {[%clk 0:00:45.6]}
26... Kg6 {[%clk 0:00:42.7]} 27. Qe3 {[%clk 0:00:41.8]} 27... Rxa5 {[%clk
0:00:13.7]} 28. f5+ {[%clk 0:00:24.1]} 28... Qxf5 {[%clk 0:00:08.1]} 29. Qh6#
{[%clk 0:00:23.4]} 1-0

[Event "Early-Titled-Tuesday-Blitz-June-18-2024"]
[Site "Chess.com"]
[Date "2024.06.18"]
[Round "9"]
[White "FishThatRoared"]
[Black "abelmat"]
[Result "1-0"]
[WhiteElo "2268"]
[BlackElo "2048"]
[TimeControl "180+1"]
[EndTime "9:46:02 PDT"]
[Termination "FishThatRoared won on time"]

1. e4 {[%clk 0:02:53.5]} 1... e6 {[%clk 0:02:59.4]} 2. d4 {[%clk 0:02:51.6]}
2... d5 {[%clk 0:03:00]} 3. e5 {[%clk 0:02:51.7]} 3... c5 {[%clk 0:02:59.8]} 4.
Qg4 {[%clk 0:02:52.3]} 4... Bd7 {[%clk 0:03:00.1]} 5. dxc5 {[%clk 0:02:48.4]}
5... Qa5+ {[%clk 0:02:58.4]} 6. c3 {[%clk 0:02:39.6]} 6... Qxc5 {[%clk
0:02:56.9]} 7. Nf3 {[%clk 0:02:38.9]} 7... Nh6 {[%clk 0:02:51.3]} 8. Qh3 {[%clk
0:02:24.9]} 8... Bb5 {[%clk 0:02:39.1]} 9. Be3 {[%clk 0:02:17.8]} 9... d4 {[%clk
0:02:14.3]} 10. Bxd4 {[%clk 0:02:02.3]} 10... Qc6 {[%clk 0:02:08.9]} 11. Nbd2
{[%clk 0:01:52.2]} 11... Bxf1 {[%clk 0:02:05.1]} 12. Nxf1 {[%clk 0:01:51.5]}
12... Nf5 {[%clk 0:01:48.5]} 13. Ne3 {[%clk 0:01:51]} 13... Nxe3 {[%clk
0:01:38.5]} 14. fxe3 {[%clk 0:01:43.3]} 14... Qb5 {[%clk 0:01:37.5]} 15. O-O-O
{[%clk 0:01:29.8]} 15... Nc6 {[%clk 0:01:34.6]} 16. Ng5 {[%clk 0:01:10.5]} 16...
Be7 {[%clk 0:01:24.9]} 17. Qh5 {[%clk 0:01:04.6]} 17... g6 {[%clk 0:01:20.5]}
18. Qh6 {[%clk 0:01:02.3]} 18... Bxg5 {[%clk 0:00:56.8]} 19. Qxg5 {[%clk
0:01:01.3]} 19... O-O {[%clk 0:00:55.7]} 20. h4 {[%clk 0:00:58.1]} 20... Nxd4
{[%clk 0:00:27]} 21. exd4 {[%clk 0:00:52]} 21... f6 {[%clk 0:00:19.4]} 22. exf6
{[%clk 0:00:50]} 22... Qf5 {[%clk 0:00:10.3]} 23. Rdf1 {[%clk 0:00:40.7]} 23...
Qxg5+ {[%clk 0:00:05.9]} 24. hxg5 {[%clk 0:00:40]} 24... Rae8 {[%clk 0:00:05.2]}
25. Re1 {[%clk 0:00:39.5]} 25... Rf7 {[%clk 0:00:04.4]} 26. Re5 {[%clk
0:00:39.8]} 26... Rd7 {[%clk 0:00:02.2]} 27. Rhe1 {[%clk 0:00:40]} 27... Kf7
{[%clk 0:00:02.3]} 28. d5 {[%clk 0:00:39.9]} 1-0

[Event "Early-Titled-Tuesday-Blitz-June-18-2024"]
[Site "Chess.com"]
[Date "2024.06.18"]
[Round "9"]
[White "TigrVShlyape"]
[Black "artin10862"]
[Result "1/2-1/2"]
[WhiteElo "3007"]
[BlackElo "2948"]
[TimeControl "180+1"]
[EndTime "9:46:03 PDT"]
[Termination "Game drawn by repetition"]

1. d4 {[%clk 0:02:28.7]} 1... e6 {[%clk 0:02:55.8]} 2. Bf4 {[%clk 0:02:26.8]}
2... Nf6 {[%clk 0:02:51.8]} 3. e3 {[%clk 0:02:27]} 3... h6 {[%clk 0:02:40.6]} 4.
Nd2 {[%clk 0:02:24.1]} 4... c5 {[%clk 0:02:38.9]} 5. c3 {[%clk 0:02:23.7]} 5...
Nc6 {[%clk 0:02:38.4]} 6. h3 {[%clk 0:02:16]} 6... d5 {[%clk 0:02:35]} 7. Ngf3
{[%clk 0:02:11.6]} 7... Bd6 {[%clk 0:02:33.7]} 8. Bxd6 {[%clk 0:02:06.2]} 8...
Qxd6 {[%clk 0:02:34.6]} 9. Bb5 {[%clk 0:02:06.1]} 9... Bd7 {[%clk 0:02:31.7]}
10. O-O {[%clk 0:02:05.4]} 10... O-O {[%clk 0:02:31.6]} 11. a4 {[%clk
0:02:04.7]} 11... Rad8 {[%clk 0:02:15.4]} 12. Bxc6 {[%clk 0:01:57.8]} 12... Bxc6
{[%clk 0:02:15.1]} 13. Ne5 {[%clk 0:01:58.4]} 13... Nd7 {[%clk 0:01:58.7]} 14.
Nxd7 {[%clk 0:01:57.9]} 14... Bxd7 {[%clk 0:01:58.3]} 15. Qb3 {[%clk 0:01:49.5]}
15... b6 {[%clk 0:01:55.9]} 16. Nf3 {[%clk 0:01:45.2]} 16... f6 {[%clk
0:01:51.9]} 17. a5 {[%clk 0:01:43.8]} 17... b5 {[%clk 0:01:44.9]} 18. Qc2 {[%clk
0:01:30.9]} 18... e5 {[%clk 0:01:39.8]} 19. Qg6 {[%clk 0:01:26.8]} 19... Qe7
{[%clk 0:01:21]} 20. Rad1 {[%clk 0:01:14]} 20... e4 {[%clk 0:01:19.6]} 21. Ne1
{[%clk 0:01:03.9]} 21... c4 {[%clk 0:01:19.4]} 22. Nc2 {[%clk 0:01:02.4]} 22...
Be6 {[%clk 0:01:09.6]} 23. Nb4 {[%clk 0:00:58.1]} 23... Rd6 {[%clk 0:01:07.8]}
24. Qg3 {[%clk 0:00:56.9]} 24... f5 {[%clk 0:01:06.8]} 25. f4 {[%clk 0:00:47.1]}
25... Bc8 {[%clk 0:01:02.1]} 26. Qf2 {[%clk 0:00:43.9]} 26... g5 {[%clk
0:01:00.2]} 27. g3 {[%clk 0:00:43.1]} 27... a6 {[%clk 0:00:51.8]} 28. Kh2 {[%clk
0:00:41.9]} 28... Qd8 {[%clk 0:00:46.9]} 29. Ra1 {[%clk 0:00:40.8]} 29... Rg6
{[%clk 0:00:45.9]} 30. Rg1 {[%clk 0:00:40.4]} 30... g4 {[%clk 0:00:43.6]} 31. h4
{[%clk 0:00:39.7]} 31... h5 {[%clk 0:00:42.6]} 32. Qd2 {[%clk 0:00:37.9]} 32...
Rf7 {[%clk 0:00:42.3]} 33. Rge1 {[%clk 0:00:34.8]} 33... Rc7 {[%clk 0:00:42.1]}
34. Qc2 {[%clk 0:00:34.6]} 34... Rd6 {[%clk 0:00:42]} 35. Qb1 {[%clk 0:00:35.2]}
35... Be6 {[%clk 0:00:42]} 36. Qa2 {[%clk 0:00:35.8]} 36... Rdd7 {[%clk
0:00:42.2]} 37. Qa3 {[%clk 0:00:36.4]} 37... Rd6 {[%clk 0:00:39.9]} 38. Kg2
{[%clk 0:00:36]} 38... Kf7 {[%clk 0:00:40]} 39. Kf2 {[%clk 0:00:36.1]} 39... Kg6
{[%clk 0:00:40.4]} 40. Nc2 {[%clk 0:00:35.6]} 40... Kh7 {[%clk 0:00:40.5]} 41.
Nb4 {[%clk 0:00:35.2]} 41... Kg6 {[%clk 0:00:40.6]} 42. Rec1 {[%clk 0:00:34.9]}
42... Kh7 {[%clk 0:00:40.9]} 43. Re1 {[%clk 0:00:30]} 43... Kg6 {[%clk
0:00:40.9]} 1/2-1/2

[Event "Early-Titled-Tuesday-Blitz-June-18-2024"]
[Site "Chess.com"]
[Date "2024.06.18"]
[Round "9"]
[White "atbenina64"]
[Black "HATilay"]
[Result "0-1"]
[WhiteElo "2817"]
[BlackElo "2657"]
[TimeControl "180+1"]
[EndTime "9:46:06 PDT"]
[Termination "HATilay won by resignation"]

1. c4 {[%clk 0:03:00]} 1... e5 {[%clk 0:02:55.3]} 2. Nc3 {[%clk 0:02:59.8]} 2...
Bb4 {[%clk 0:02:55.5]} 3. Nd5 {[%clk 0:02:59.7]} 3... Be7 {[%clk 0:02:56]} 4.
Nf3 {[%clk 0:02:57.8]} 4... d6 {[%clk 0:02:55.8]} 5. d4 {[%clk 0:02:57.5]} 5...
Nf6 {[%clk 0:02:56.4]} 6. dxe5 {[%clk 0:02:54.9]} 6... dxe5 {[%clk 0:02:55.1]}
7. Nxe5 {[%clk 0:02:46.8]} 7... O-O {[%clk 0:02:34.9]} 8. Nf3 {[%clk 0:02:31.4]}
8... Be6 {[%clk 0:02:20.9]} 9. Nxe7+ {[%clk 0:02:26.7]} 9... Qxe7 {[%clk
0:02:20.4]} 10. e3 {[%clk 0:02:21.1]} 10... Ne4 {[%clk 0:02:07.1]} 11. Qc2
{[%clk 0:02:09.7]} 11... Bf5 {[%clk 0:01:38.7]} 12. Qb3 {[%clk 0:01:55.8]} 12...
Nd7 {[%clk 0:01:00]} 13. Be2 {[%clk 0:01:50.6]} 13... Nec5 {[%clk 0:00:31.3]}
14. Qd1 {[%clk 0:01:33.4]} 14... Rad8 {[%clk 0:00:26.5]} 15. Nd4 {[%clk
0:01:32.7]} 15... Be4 {[%clk 0:00:26.9]} 16. O-O {[%clk 0:01:32.4]} 16... Ne5
{[%clk 0:00:27.2]} 17. f3 {[%clk 0:01:32]} 17... Bd3 {[%clk 0:00:23.5]} 18. b4
{[%clk 0:01:21.8]} 18... Bxe2 {[%clk 0:00:18.3]} 19. Qxe2 {[%clk 0:01:22.7]}
19... Na4 {[%clk 0:00:06.7]} 20. a3 {[%clk 0:01:05]} 20... Rfe8 {[%clk
0:00:04.8]} 21. Qc2 {[%clk 0:01:04]} 21... c6 {[%clk 0:00:02.6]} 22. Qxa4 {[%clk
0:01:01.7]} 22... Nd3 {[%clk 0:00:02.8]} 23. Bd2 {[%clk 0:00:57.4]} 23... Qe5
{[%clk 0:00:03.2]} 24. Qc2 {[%clk 0:00:56.8]} 24... Rxd4 {[%clk 0:00:03.6]} 25.
exd4 {[%clk 0:00:54.7]} 25... Qxd4+ {[%clk 0:00:04.5]} 26. Kh1 {[%clk
0:00:54.5]} 26... Nf2+ {[%clk 0:00:05.1]} 27. Rxf2 {[%clk 0:00:53.8]} 27...
Qxa1+ {[%clk 0:00:04.8]} 0-1

[Event "Early-Titled-Tuesday-Blitz-June-18-2024"]
[Site "Chess.com"]
[Date "2024.06.18"]
[Round "9"]
[White "LuisFSiles"]
[Black "Nadtkins"]
[Result "0-1"]
[WhiteElo "2341"]
[BlackElo "2538"]
[TimeControl "180+1"]
[EndTime "9:46:06 PDT"]
[Termination "Nadtkins won by resignation"]

1. e4 {[%clk 0:03:00.9]} 1... c5 {[%clk 0:02:56.3]} 2. Nf3 {[%clk 0:02:59.6]}
2... e6 {[%clk 0:02:53.1]} 3. d4 {[%clk 0:02:58.8]} 3... cxd4 {[%clk 0:02:54]}
4. Nxd4 {[%clk 0:02:58.6]} 4... Nc6 {[%clk 0:02:53.8]} 5. Nc3 {[%clk 0:02:58]}
5... a6 {[%clk 0:02:54.4]} 6. Nxc6 {[%clk 0:02:55.7]} 6... bxc6 {[%clk
0:02:55.3]} 7. Bd3 {[%clk 0:02:55.6]} 7... d5 {[%clk 0:02:53.7]} 8. O-O {[%clk
0:02:54.8]} 8... Nf6 {[%clk 0:02:53.8]} 9. Re1 {[%clk 0:02:53.9]} 9... Be7
{[%clk 0:02:53.7]} 10. e5 {[%clk 0:02:49.6]} 10... Nd7 {[%clk 0:02:52.8]} 11.
Qg4 {[%clk 0:02:49.6]} 11... Kf8 {[%clk 0:02:18.6]} 12. Na4 {[%clk 0:02:47.7]}
12... h5 {[%clk 0:02:15.4]} 13. Qe2 {[%clk 0:02:43.6]} 13... c5 {[%clk
0:02:04.4]} 14. c4 {[%clk 0:02:43.3]} 14... d4 {[%clk 0:01:59.8]} 15. b3 {[%clk
0:02:42.4]} 15... Bb7 {[%clk 0:01:51.7]} 16. Nb2 {[%clk 0:02:40.1]} 16... Qc7
{[%clk 0:01:43]} 17. Be4 {[%clk 0:02:27.9]} 17... g6 {[%clk 0:01:32.1]} 18. Nd3
{[%clk 0:02:23.9]} 18... Kg7 {[%clk 0:01:26.9]} 19. Bd2 {[%clk 0:01:59.2]} 19...
a5 {[%clk 0:01:24.1]} 20. Qf3 {[%clk 0:01:51.7]} 20... Bxe4 {[%clk 0:01:17.7]}
21. Rxe4 {[%clk 0:01:36.4]} 21... a4 {[%clk 0:00:59.1]} 22. Rae1 {[%clk
0:01:15]} 22... axb3 {[%clk 0:00:58.1]} 23. axb3 {[%clk 0:01:15.9]} 23... Ra3
{[%clk 0:00:42.3]} 24. Nf4 {[%clk 0:00:47.5]} 24... Qb7 {[%clk 0:00:26.8]} 25.
Rb1 {[%clk 0:00:24.3]} 25... Rb8 {[%clk 0:00:26.2]} 26. Nxh5+ {[%clk 0:00:21.7]}
26... gxh5 {[%clk 0:00:20.5]} 27. Qxh5 {[%clk 0:00:21.3]} 27... Qxe4 {[%clk
0:00:20.6]} 28. Qh6+ {[%clk 0:00:11.7]} 28... Kg8 {[%clk 0:00:21]} 29. Re1
{[%clk 0:00:11.1]} 29... Qg6 {[%clk 0:00:20.9]} 0-1

[Event "Early-Titled-Tuesday-Blitz-June-18-2024"]
[Site "Chess.com"]
[Date "2024.06.18"]
[Round "9"]
[White "Adrian-thorsen"]
[Black "MarlonJodar"]
[Result "1-0"]
[WhiteElo "2330"]
[BlackElo "2345"]
[TimeControl "180+1"]
[EndTime "9:46:08 PDT"]
[Termination "Adrian-thorsen won on time"]

1. e4 {[%clk 0:02:51.6]} 1... e5 {[%clk 0:02:58]} 2. Nf3 {[%clk 0:02:49.4]} 2...
Nc6 {[%clk 0:02:58.2]} 3. Nc3 {[%clk 0:02:46.2]} 3... Nf6 {[%clk 0:02:58]} 4. h3
{[%clk 0:02:45.6]} 4... d5 {[%clk 0:02:55.1]} 5. exd5 {[%clk 0:02:42.6]} 5...
Nxd5 {[%clk 0:02:56]} 6. Bb5 {[%clk 0:02:37.9]} 6... Nxc3 {[%clk 0:02:55]} 7.
bxc3 {[%clk 0:02:38.8]} 7... Bd6 {[%clk 0:02:53.5]} 8. O-O {[%clk 0:02:36.1]}
8... O-O {[%clk 0:02:53.1]} 9. d4 {[%clk 0:02:36.7]} 9... exd4 {[%clk
0:02:52.5]} 10. cxd4 {[%clk 0:02:37.6]} 10... h6 {[%clk 0:02:49.9]} 11. c4
{[%clk 0:02:35.9]} 11... Bf5 {[%clk 0:02:22.7]} 12. c5 {[%clk 0:02:28.1]} 12...
Be7 {[%clk 0:02:22.2]} 13. d5 {[%clk 0:02:22.6]} 13... Bf6 {[%clk 0:02:21.3]}
14. dxc6 {[%clk 0:02:11.5]} 14... Bxa1 {[%clk 0:02:19]} 15. cxb7 {[%clk
0:02:09.8]} 15... Rb8 {[%clk 0:02:18.9]} 16. c6 {[%clk 0:02:06.8]} 16... Bf6
{[%clk 0:02:10]} 17. Ba3 {[%clk 0:02:00.4]} 17... Re8 {[%clk 0:00:40.8]} 18. Qa4
{[%clk 0:01:53.6]} 18... Be4 {[%clk 0:00:30.6]} 19. Qb3 {[%clk 0:01:43.5]} 19...
Qd5 {[%clk 0:00:19.9]} 20. Rd1 {[%clk 0:01:11]} 20... Qxb3 {[%clk 0:00:18.4]}
21. axb3 {[%clk 0:01:10.6]} 21... a6 {[%clk 0:00:18.7]} 22. Ba4 {[%clk 0:01:07]}
22... Bxf3 {[%clk 0:00:09.8]} 23. gxf3 {[%clk 0:01:06.2]} 23... Red8 {[%clk
0:00:05.4]} 24. Rxd8+ {[%clk 0:00:19.2]} 24... Rxd8 {[%clk 0:00:06.3]} 25. Bd6
{[%clk 0:00:18.2]} 1-0